bitfinex-derivatives/quotes_ETHF0:USTF0_20250114
["timestamp","ask_amount","ask_price","bid_price","bid_amount"]
[1736822795679,5.738862,3158.6,3157.9,1.2691]
[1736822795871,3.2078,3158.2,3158.0,0.31679]
[1736822796072,3.2078,3158.2,3157.9,0.9523]
[1736822796073,3.2078,3158.2,3158.1,0.31678]
[1736822796273,3.2078,3158.2,3158.0,0.4583]
[1736822796570,0.31678,3158.1,3157.9,0.4845]
[1736822796776,0.31679,3158.1,3157.9,0.4845]
[1736822796977,3.2078,3158.2,3157.9,0.4845]
[1736822797276,0.31679,3158.0,3157.9,0.4845]
[1736822797471,0.31679,3158.0,3157.7,0.77512]
[1736822797676,0.31678,3158.1,3157.8,0.78591]
[1736822797879,0.31678,3158.1,3157.8,0.4691]
[1736822798682,3.52458,3158.2,3157.8,0.78591]
[1736822798880,0.31679,3158.1,3157.8,0.78591]
[1736822799184,0.31679,3158.0,3157.8,0.4691]
[1736822799582,3.52458,3158.2,3157.8,0.7859]
[1736822799778,0.31678,3158.1,3157.8,0.7859]
[1736822801184,3.2078,3158.2,3157.8,0.7859]
[1736822801383,3.52458,3158.2,3157.8,0.7859]
[1736822801578,3.52458,3158.2,3157.9,0.3168]
[1736822802987,3.52458,3158.2,3157.8,0.4691]
[1736822803188,3.2078,3158.2,3158.1,0.31678]
[1736822805389,0.31678,3158.1,3157.8,0.78591]
[1736822805786,0.31678,3158.1,3157.9,0.3168]
[1736822806391,3.2078,3158.2,3157.8,0.4691]
[1736822806590,0.3168,3158.0,3157.8,0.78591]
[1736822806799,0.3168,3158.0,3157.8,0.4691]
[1736822807497,0.3168,3157.9,3157.8,0.4691]
[1736822808693,0.31682,3157.8,3157.6,0.31683]
[1736822808896,3.2078,3157.7,3157.6,0.31683]
[1736822811300,3.2078,3158.1,3157.9,0.3168]
[1736822811496,3.2078,3158.1,3158.0,1.28399]
[1736822812190,0.31675,3158.5,3158.4,0.31675]
[1736822812191,3.2078,3158.5,3158.4,0.31675]
[1736822812396,3.2078,3158.5,3158.4,2.847812]
[1736822813405,0.3167,3159.0,3158.4,2.847812]
[1736822813406,3.2078,3158.9,3158.4,2.531062]
[1736822813705,3.2078,3158.9,3158.5,2.2652]
[1736822814098,3.2078,3158.9,3158.7,0.31672]
[1736822814498,3.2078,3158.9,3158.8,0.31671]
[1736822815696,0.31673,3158.7,3158.4,0.31675]
[1736822816002,3.52451,3158.9,3158.6,0.31672]
[1736822816197,3.52451,3158.9,3158.7,0.4564]
[1736822816404,0.31671,3158.8,3158.7,0.4564]
[1736822816702,3.2078,3158.9,3158.7,0.77312]
[1736822817411,3.2078,3158.9,3158.2,0.4904]
[1736822817601,3.2078,3158.5,3157.9,0.4712]
[1736822817803,0.31679,3158.1,3157.9,0.4712]
[1736822818003,0.31679,3158.1,3157.9,0.788]
[1736822818300,3.2078,3158.1,3157.2,5.738862]
[1736822818507,3.2078,3158.1,3157.6,0.31683]
[1736822818704,0.31682,3157.8,3157.5,0.31684]
[1736822818907,5.738862,3158.1,3157.3,1.296]
[1736822819213,0.31682,3157.8,3157.5,0.31684]
[1736822820307,5.738862,3158.1,3157.2,4.975]
[1736822820606,0.31682,3157.8,3157.5,0.31684]
[1736822820906,3.2078,3158.1,3157.3,2.531062]
[1736822821107,0.31682,3157.8,3157.4,0.31685]
[1736822821602,0.2399,3158.3,3157.3,2.531062]
[1736822821603,3.52463,3157.7,3157.3,0.31686]
[1736822821805,3.2078,3157.7,3157.2,4.975]
[1736822822007,0.2399,3158.3,3157.0,0.4615]
[1736822822008,3.2078,3157.3,3157.0,0.4615]
[1736822822411,3.52467,3157.3,3157.0,0.4615]
[1736822822605,3.2078,3157.3,3157.0,0.4615]
[1736822822806,3.2078,3157.3,3157.1,0.499]
[1736822823110,2.531062,3157.2,3155.7,3.2078]
[1736822823302,3.2078,3156.7,3155.8,8.023762]
[1736822823507,3.2078,3156.7,3156.5,0.31694]
[1736822823706,3.2078,3156.7,3156.4,0.31695]
[1736822823912,3.2078,3156.7,3156.5,0.81384]
[1736822824415,3.2078,3156.7,3156.6,0.31693]
[1736822824613,3.2078,3157.1,3156.6,4.998]
[1736822824913,3.2078,3157.1,3156.8,0.31691]
[1736822825312,3.2078,3157.1,3157.0,0.31689]
[1736822827918,0.2402,3158.1,3157.4,0.31685]
[1736822827919,3.2078,3157.5,3157.4,0.31685]
[1736822828113,3.2078,3157.5,3157.2,0.31687]
[1736822828314,3.2078,3157.5,3157.1,0.4591]
[1736822828315,3.2078,3157.5,3157.3,0.77936]
[1736822828819,3.2078,3157.5,3157.3,0.4625]
[1736822830117,3.2078,3157.5,3157.4,0.31685]
[1736822830319,3.2078,3157.5,3157.3,0.4625]
[1736822831420,3.2078,3157.5,3157.4,0.31685]
[1736822833020,3.2078,3157.9,3157.3,4.290562]
[1736822833217,3.2078,3157.9,3157.8,0.31681]
[1736822833833,3.2078,3157.9,3157.4,2.531062]
[1736822834124,3.2078,3157.9,3157.6,0.31683]
[1736822834827,3.2078,3157.9,3157.4,2.531062]
[1736822835120,3.2078,3157.9,3157.7,0.31682]
[1736822835724,3.2078,3157.9,3157.6,0.31683]
[1736822836018,3.2078,3158.3,3157.4,5.738862]
[1736822836213,0.31678,3158.2,3157.7,0.31681]
[1736822837111,0.31678,3158.1,3157.7,0.31681]
[1736822837314,0.31678,3158.1,3157.4,5.738862]
[1736822837518,0.31678,3158.1,3157.8,0.31681]
[1736822837710,0.31678,3158.2,3157.8,0.31681]
[1736822837911,0.81178,3158.2,3157.8,0.31681]
[1736822838117,0.495,3158.2,3157.4,5.738862]
[1736822838313,0.495,3158.2,3157.3,1.7595]
[1736822838314,3.2078,3157.8,3157.3,2.07636]
[1736822838515,3.2078,3157.8,3156.6,0.79233]
[1736822838516,3.2078,3157.4,3155.8,3.2078]
[1736822838722,2.531062,3156.4,3155.8,0.4574]
[1736822838920,0.31696,3156.4,3155.9,0.317]
[1736822839122,3.52475,3156.5,3155.9,0.317]
[1736822839319,3.2078,3156.5,3155.8,5.738862]
[1736822839716,3.52474,3156.5,3156.0,0.31699]
[1736822839913,3.52474,3156.5,3155.8,5.738862]
[1736822840117,3.52474,3156.5,3155.9,0.317]
[1736822840316,3.52474,3156.5,3155.8,5.738862]
[1736822840317,0.31695,3156.4,3155.8,3.52481]
[1736822840523,3.52474,3156.5,3155.9,1.61399]
[1736822840718,3.2078,3156.5,3155.9,1.297]
[1736822840922,3.2078,3156.5,3156.0,0.79049]
[1736822841226,3.2078,3156.5,3156.0,0.4735]
[1736822841427,3.2078,3156.5,3156.2,0.31697]
[1736822841628,3.2078,3156.5,3156.4,0.31695]
[1736822842030,3.52471,3156.9,3156.4,0.31695]
[1736822842226,3.2078,3156.9,3156.2,0.4587]
[1736822842428,3.2078,3156.9,3156.5,0.31694]
[1736822842725,3.5247,3156.9,3156.6,1.297]
[1736822843319,3.2078,3156.9,3156.6,1.297]
[1736822843519,3.2078,3156.9,3156.8,0.31691]
[1736822843727,3.2078,3157.3,3157.2,0.31687]
[1736822844124,3.2078,3157.7,3157.5,0.31684]
[1736822844326,3.52462,3157.7,3157.6,1.296]
[1736822845125,3.2078,3157.7,3157.1,0.4587]
[1736822845325,5.738862,3157.7,3157.1,0.4587]
[1736822845525,5.738862,3157.7,3157.2,1.296]
[1736822845526,0.31685,3157.5,3157.2,1.296]
[1736822845924,0.4619,3157.6,3157.2,1.296]
[1736822846231,3.2078,3157.7,3157.2,1.296]
[1736822846439,3.2078,3157.7,3157.3,0.31686]
[1736822846624,3.52463,3157.7,3157.3,0.31686]
[1736822847537,3.2078,3157.7,3157.2,1.296]
[1736822847729,3.2078,3157.7,3157.3,0.4793]
[1736822847933,3.2078,3157.7,3157.4,0.31685]
[1736822848731,3.2078,3157.7,3157.3,0.79615]
[1736822848934,3.2078,3157.7,3157.1,0.4587]
[1736822848935,0.31683,3157.6,3157.5,1.296]
[1736822849133,3.2078,3157.7,3157.5,1.296]
[1736822849827,3.52463,3157.7,3157.5,1.296]
[1736822850033,3.2078,3157.7,3157.5,1.296]
[1736822850731,3.52462,3157.7,3157.5,1.296]
[1736822850933,3.2078,3157.7,3157.5,1.296]
[1736822851128,0.3168,3157.9,3157.5,1.61284]
[1736822851335,3.6697,3158.1,3157.5,1.296]
[1736822851336,0.31682,3157.8,3157.5,1.296]
[1736822852033,0.31681,3157.9,3157.5,1.61284]
[1736822852227,3.6697,3158.1,3157.6,2.531062]
[1736822852430,3.2078,3158.1,3158.0,0.31679]
[1736822852827,3.2078,3158.1,3158.0,0.81769]
[1736822853329,3.2078,3158.7,3158.1,0.31678]
[1736822853529,3.2078,3158.7,3158.4,0.31675]
[1736822854235,3.2078,3158.7,3158.5,0.31674]
[1736822855134,3.2078,3158.7,3158.4,0.31675]
[1736822855531,3.2078,3158.7,3158.3,2.983862]
[1736822855735,3.2078,3158.7,3158.5,0.31674]
[1736822855936,3.2078,3158.7,3158.4,0.31675]
[1736822856836,3.2078,3158.7,3158.3,2.983862]
[1736822856837,3.52452,3158.7,3158.5,1.296]
[1736822857231,3.2078,3158.7,3158.5,1.296]
[1736822857639,3.2078,3158.7,3158.5,1.61274]
[1736822858227,3.2078,3158.7,3158.5,1.296]
[1736822858632,3.2078,3158.7,3158.5,1.61274]
[1736822859136,3.2078,3158.7,3158.5,1.296]
[1736822859839,3.2078,3158.7,3158.3,0.4528]
[1736822860033,3.2078,3158.7,3158.5,0.31674]
[1736822860942,0.31671,3158.8,3158.5,0.31674]
[1736822862238,0.31671,3158.8,3158.6,1.296]
[1736822862739,3.2078,3158.9,3158.6,1.296]
[1736822862935,3.2078,3158.9,3158.7,0.31672]
[1736822863443,3.5245,3158.9,3158.6,1.296]
[1736822863646,3.2078,3158.9,3158.7,0.31672]
[1736822864143,3.5245,3158.9,3158.7,0.31672]
[1736822864339,0.3167,3158.9,3158.7,0.31672]
[1736822864842,0.3167,3158.9,3158.6,1.296]
[1736822864843,0.3167,3158.9,3158.6,1.61273]
[1736822865038,0.31671,3158.8,3158.6,1.61273]
[1736822866634,0.31671,3158.9,3158.6,1.61273]
[1736822867831,0.31671,3158.9,3158.6,1.296]
[1736822868041,0.31671,3158.9,3158.7,0.31672]
[1736822868344,0.31671,3158.9,3158.6,1.61273]
[1736822868744,3.2078,3159.0,3158.6,1.296]
[1736822868940,3.2078,3159.4,3158.9,2.531062]
[1736822869241,3.2078,3159.4,3158.6,4.5038]
[1736822869242,3.2078,3159.4,3159.3,2.847722]
[1736822869441,3.2078,3159.4,3159.3,4.143722]
[1736822869646,3.2078,3159.4,3159.3,1.61266]
[1736822871547,3.2078,3159.4,3159.3,4.143722]
[1736822873041,3.2078,3159.8,3159.4,0.31665]
[1736822873345,3.2078,3159.8,3159.6,0.31663]
[1736822873536,3.2078,3159.8,3159.5,0.31664]
[1736822873740,3.52441,3159.8,3159.5,0.31664]
[1736822874841,0.31664,3159.6,3159.4,0.4844]
[1736822875148,0.31664,3159.6,3159.5,1.295]
[1736822875849,3.2078,3159.8,3159.5,1.295]
[1736822876244,3.2078,3159.8,3159.6,0.31662]
[1736822876749,3.52442,3159.8,3159.6,0.31662]
[1736822876949,3.52442,3159.8,3159.5,1.295]
[1736822876950,0.31662,3159.7,3159.5,1.295]
[1736822877350,0.31662,3159.7,3159.5,1.61164]
[1736822877554,0.31662,3159.7,3159.5,1.295]
[1736822877849,3.2078,3159.8,3159.1,0.4815]
[1736822878153,0.3167,3158.9,3158.8,1.295]
[1736822878453,3.2078,3159.2,3158.7,0.31671]
[1736822878654,3.2078,3158.8,3158.7,0.31671]
[1736822878853,3.52451,3158.8,3158.6,1.61173]
[1736822879145,3.2078,3158.8,3158.4,2.531062]
[1736822879347,3.2078,3158.8,3158.5,1.295]
[1736822879552,0.31673,3158.6,3158.5,1.295]
[1736822880252,0.31673,3158.6,3158.4,1.295]
[1736822881153,3.2078,3158.8,3158.4,1.295]
[1736822881653,0.31672,3158.7,3158.4,1.295]
[1736822881851,3.2078,3158.8,3158.4,3.826062]
[1736822882149,0.4758,3159.1,3158.7,2.531062]
[1736822882353,0.4758,3159.1,3158.9,0.3167]
[1736822882553,0.4758,3159.1,3158.8,0.8059]
[1736822882758,0.4758,3159.1,3158.9,0.3167]
[1736822883050,0.79248,3159.1,3158.8,0.80591]
[1736822883253,0.4758,3159.1,3158.8,0.80591]
[1736822883654,0.4758,3159.1,3158.8,0.4892]
[1736822883855,0.4758,3159.1,3158.9,0.3167]
[1736822884751,0.4758,3159.1,3159.0,0.31669]
[1736822885145,3.2078,3159.2,3158.8,0.4892]
[1736822885344,3.2078,3159.2,3159.1,0.31668]
[1736822885549,3.2078,3159.2,3159.0,0.31669]
[1736822885848,3.2078,3159.2,3158.8,0.4892]
[1736822886154,0.31674,3158.6,3158.3,1.295]
[1736822886354,3.2078,3158.6,3158.3,1.295]
[1736822886547,3.2078,3158.6,3158.4,0.31675]
[1736822886752,0.31672,3158.7,3158.4,0.80715]
[1736822886951,3.2078,3159.0,3158.4,0.4904]
[1736822887151,0.31673,3158.6,3158.4,0.4904]
[1736822887348,0.31673,3158.7,3158.4,0.4904]
[1736822887657,3.52454,3158.6,3158.4,0.4904]
[1736822888158,3.2078,3158.6,3158.4,0.4904]
[1736822888355,3.52454,3158.6,3158.4,0.4904]
[1736822888651,3.52454,3158.6,3158.3,1.295]
[1736822888858,3.52454,3158.6,3158.3,1.61176]
[1736822891356,5.738862,3158.6,3157.9,3.5246]
[1736822891555,0.3168,3158.0,3157.7,1.295]
[1736822891761,0.31679,3158.1,3157.8,0.31681]
[1736822892150,0.31679,3158.1,3157.7,1.295]
[1736822892454,3.2078,3158.2,3157.7,1.295]
[1736822892759,0.3168,3158.0,3157.7,1.295]
[1736822893161,0.3168,3158.0,3157.7,1.61182]
[1736822893361,0.31679,3158.1,3157.7,1.61182]
[1736822893762,3.2078,3158.2,3157.7,1.61182]
[1736822893960,0.31679,3158.0,3157.7,1.61182]
[1736822894258,3.2078,3158.2,3157.7,1.295]
[1736822894462,0.31681,3157.8,3157.7,1.295]
[1736822894662,3.2078,3158.2,3157.5,0.9363]
[1736822894860,2.531062,3158.3,3157.5,0.9363]
[1736822894861,3.52462,3157.8,3157.5,2.2313]
[1736822895555,3.52462,3157.8,3157.5,0.4761]
[1736822896361,2.531062,3157.6,3156.6,13.936062]
[1736822896560,3.2078,3157.3,3156.8,0.956]
[1736822896757,3.2078,3157.3,3157.0,0.31689]
[1736822897651,3.52467,3157.3,3157.0,0.31689]
[1736822897856,3.52467,3157.3,3157.0,1.61189]
[1736822898360,3.2078,3157.3,3157.0,1.61189]
[1736822898665,3.2078,3157.3,3157.0,1.295]
[1736822898959,3.52467,3157.3,3157.0,1.295]
[1736822899356,0.31687,3157.2,3157.0,1.295]
[1736822899757,0.81457,3157.2,3157.0,1.295]
[1736822900460,0.4977,3157.2,3157.0,1.295]
[1736822903264,3.52467,3157.3,3157.0,1.61189]
[1736822903861,3.52467,3157.3,3157.0,1.295]
[1736822904061,3.2078,3157.3,3157.0,1.295]
[1736822904265,0.31687,3157.2,3157.0,1.295]
[1736822904466,3.52467,3157.3,3157.0,1.61189]
[1736822905867,0.31687,3157.2,3157.0,1.295]
[1736822906167,3.52467,3157.3,3157.0,1.295]
[1736822906460,3.52467,3157.3,3157.0,1.61189]
[1736822907359,3.52467,3157.3,3157.0,0.31689]
[1736822907667,3.52467,3157.3,3157.1,1.295]
[1736822908662,3.2078,3157.3,3157.1,1.295]
[1736822908966,0.31688,3157.2,3157.0,1.295]
[1736822910961,3.52467,3157.3,3157.0,1.61189]
[1736822912768,3.2078,3157.3,3157.0,1.295]
[1736822912963,0.31688,3157.2,3157.0,1.295]
[1736822913668,0.3169,3156.9,3156.8,0.956]
[1736822913866,0.3169,3156.9,3156.8,1.7744]
[1736822914269,2.531062,3157.0,3156.4,0.4981]
[1736822914564,2.531062,3157.0,3156.4,1.7701]
[1736822914565,3.52474,3156.5,3156.4,1.7701]
[1736822914772,3.52474,3156.5,3156.4,0.4751]
[1736822914967,0.31696,3156.3,3156.2,1.295]
[1736822916075,3.2078,3156.5,3156.1,0.908]
[1736822916076,0.31697,3156.2,3156.1,0.908]
[1736822916268,0.31696,3156.3,3156.1,2.203]
[1736822916572,0.31696,3156.4,3156.1,2.51998]
[1736822916876,3.52474,3156.5,3156.2,0.31697]
[1736822917071,3.2078,3156.5,3156.1,2.203]
[1736822917270,3.2078,3156.5,3156.3,0.31696]
[1736822917469,3.2078,3156.5,3156.2,0.31696]
[1736822917670,3.2078,3156.5,3156.1,2.203]
[1736822917863,0.31697,3156.3,3156.1,2.203]
[1736822918671,3.2078,3156.5,3156.1,2.203]
[1736822918871,0.31696,3156.4,3156.1,2.203]
[1736822919571,0.31696,3156.4,3156.1,2.51998]
[1736822920278,3.52475,3156.5,3156.1,2.51998]
[1736822920980,3.52475,3156.5,3156.1,2.203]
[1736822921176,3.52475,3156.5,3156.2,0.31697]
[1736822923780,3.2078,3156.5,3156.3,0.31696]
[1736822925879,3.2078,3156.5,3156.2,0.31694]
[1736822926086,3.52473,3156.5,3156.2,0.31694]
[1736822926382,3.2078,3156.5,3156.2,0.31694]
[1736822927184,3.2078,3156.5,3155.9,1.295]
[1736822927478,0.31696,3156.2,3155.8,5.27779]
[1736822927782,2.531062,3156.4,3155.9,0.31698]
[1736822928083,0.31694,3156.3,3155.9,0.31698]
[1736822928280,0.78664,3156.3,3155.9,0.31698]
[1736822928480,0.78664,3156.3,3155.8,4.9608]
[1736822928681,0.78664,3156.3,3156.0,0.31697]
[1736822929188,3.2078,3156.5,3155.9,1.295]
[1736822929484,3.52473,3156.5,3156.2,0.31695]
[1736822929678,3.52473,3156.5,3156.3,0.31694]
[1736822930681,3.2078,3156.5,3155.9,1.295]
[1736822930882,3.52473,3156.5,3156.0,0.31697]
[1736822931181,3.52473,3156.5,3155.9,1.295]
[1736822931381,0.31693,3156.4,3156.2,0.31695]
[1736822933678,0.31694,3156.3,3156.1,0.77076]
[1736822934683,3.2078,3156.5,3156.1,0.4538]
[1736822934888,0.31696,3156.1,3156.0,1.295]
[1736822935478,0.31696,3156.1,3155.9,0.31698]
[1736822935989,0.31696,3156.2,3155.9,0.31698]
[1736822936188,0.31696,3156.1,3155.9,0.31698]
[1736822937689,0.4619,3156.2,3155.8,0.458]
[1736822937991,0.4619,3156.2,3155.7,0.4538]
[1736822937992,3.2078,3155.9,3155.7,0.4538]
[1736822938384,3.2078,3155.9,3155.4,3.2078]
[1736822938581,0.31702,3155.5,3155.4,3.2078]
[1736822938789,0.31702,3155.6,3155.4,3.2078]
[1736822938981,0.9709,3155.7,3155.4,3.2078]
[1736822939186,0.9709,3155.7,3155.0,0.9183]
[1736822939187,2.531062,3155.5,3155.0,2.2133]
[1736822939387,0.31702,3155.6,3155.3,0.31704]
[1736822939587,0.31703,3155.5,3155.2,0.31705]
[1736822939789,3.2078,3155.4,3155.2,0.31705]
[1736822941186,3.2078,3155.4,3155.3,0.31704]
[1736822941394,3.2078,3155.8,3155.4,0.31703]
[1736822941699,3.2078,3155.8,3155.5,0.4949]
[1736822941899,3.5248,3155.8,3155.5,0.81192]
[1736822942197,3.5248,3155.8,3155.6,0.4559]
[1736822942786,0.317,3155.7,3155.6,0.4559]
[1736822945093,5.738862,3155.8,3154.9,5.0007]
[1736822945394,0.31705,3155.3,3155.0,2.52856]
[1736822945597,0.31706,3155.1,3155.0,0.9165]
[1736822946394,3.69,3155.4,3155.0,1.23357]
[1736822946597,0.31705,3155.3,3155.0,1.23357]
[1736822946794,0.31706,3155.2,3155.0,0.9165]
[1736822946996,0.31706,3155.1,3155.0,0.9165]
[1736822947701,0.31705,3155.2,3155.0,0.9165]
[1736822948995,0.31706,3155.1,3155.0,0.9165]
[1736822949897,0.31706,3155.1,3155.0,0.4539]
[1736822952308,0.31704,3155.3,3155.0,0.77097]
[1736822952805,3.2078,3155.4,3155.0,0.4539]
[1736822953000,0.31706,3155.1,3155.0,0.4539]
[1736822953403,3.2078,3155.4,3155.0,0.4539]
[1736822953801,3.2078,3155.4,3155.3,0.31704]
[1736822954706,3.2078,3155.8,3155.7,0.317]
[1736822954901,3.2078,3156.4,3155.7,3.826062]
[1736822955103,3.52474,3156.4,3156.0,0.31697]
[1736822955409,0.31697,3156.1,3155.8,0.80339]
[1736822955609,3.2078,3156.0,3155.3,3.2078]
[1736822955904,3.2078,3156.0,3155.4,1.4322]
[1736822956101,3.2078,3156.0,3155.7,0.31699]
[1736822956404,3.2078,3156.0,3155.4,1.74923]
[1736822956707,3.2078,3156.0,3155.5,0.31702]
[1736822956708,0.31698,3155.9,3155.5,0.31702]
[1736822957008,3.2078,3156.0,3155.5,0.31702]
[1736822957203,3.2078,3156.0,3155.4,1.4322]
[1736822957399,0.317,3155.7,3155.4,1.74923]
[1736822957706,3.2078,3156.0,3155.4,1.4322]
[1736822958006,3.2078,3156.0,3155.7,0.31699]
[1736822958610,3.52477,3156.0,3155.7,0.31699]
[1736822958805,3.2078,3156.0,3155.5,0.31702]
[1736822959007,3.2078,3156.0,3155.6,1.295]
[1736822959206,3.2078,3156.0,3155.9,0.31698]
[1736822959409,3.2078,3156.0,3155.6,1.295]
[1736822959805,3.2078,3156.0,3155.8,0.31699]
[1736822960309,3.2078,3156.0,3155.9,0.4632]
[1736822960815,3.52477,3156.0,3155.9,0.4632]
[1736822962012,3.2078,3156.0,3155.9,0.4632]
[1736822962712,3.2078,3156.0,3155.9,0.78018]
[1736822964118,3.2078,3156.0,3155.9,0.4632]
[1736822964612,3.52477,3156.0,3155.9,0.4632]
[1736822964812,3.2078,3156.0,3155.7,1.295]
[1736822965015,0.31699,3155.8,3155.6,1.294]
[1736822965412,0.31699,3155.9,3155.6,1.61101]
[1736822965914,3.52478,3156.0,3155.7,0.317]
[1736822967420,3.2078,3156.0,3155.9,0.31698]
[1736822969509,3.2078,3156.0,3155.6,1.294]
[1736822969720,3.52477,3156.0,3155.7,0.31699]
[1736822970216,3.2078,3156.0,3155.8,0.31699]
[1736822970720,3.2078,3156.0,3155.6,1.294]
[1736822970721,3.2078,3156.0,3155.9,0.31698]
[1736822971416,0.31698,3155.9,3155.7,0.317]
[1736822971617,0.4699,3155.9,3155.6,1.294]
[1736822971814,0.4699,3155.9,3155.7,0.317]
[1736822974518,0.78688,3155.9,3155.7,0.317]
[1736822975226,0.78688,3155.9,3155.6,1.294]
[1736822975422,0.4699,3155.9,3155.5,0.5001]
[1736822975729,0.4699,3155.9,3155.3,1.294]
[1736822975925,0.31706,3155.2,3155.0,3.2078]
[1736822976121,3.2078,3155.4,3154.8,1.27329]
[1736822976322,0.31705,3155.2,3154.8,2.2502]
[1736822976628,0.4989,3155.3,3154.8,2.2502]
[1736822976629,0.31707,3155.1,3154.8,2.56729]
[1736822976823,0.4989,3155.3,3154.8,0.9562]
[1736822976824,0.31708,3154.9,3154.8,0.9562]
[1736822977016,0.31708,3154.9,3154.8,0.4708]
[1736822977728,3.52488,3154.9,3154.8,0.4708]
[1736822977925,3.2078,3154.9,3154.5,1.294]
[1736822978129,3.2078,3154.9,3154.5,1.7648]
[1736822978130,0.4989,3154.8,3154.5,1.7648]
[1736822978332,0.4989,3154.8,3154.6,0.31711]
[1736822979925,3.2078,3154.9,3154.5,1.7648]
[1736822980430,3.2078,3154.9,3154.6,0.31711]
[1736822982132,3.2078,3154.9,3154.8,0.31709]
[1736822984734,3.2078,3154.9,3154.8,1.61109]
[1736822989736,3.52485,3155.3,3154.8,1.294]
[1736822990038,0.31706,3155.2,3154.9,1.26038]
[1736822990739,3.2078,3155.3,3155.2,0.31705]
[1736822991837,0.31702,3155.5,3155.3,0.31704]
[1736822992040,0.31702,3155.6,3155.3,0.31704]
[1736822992233,3.52481,3155.7,3155.5,0.31702]
[1736822992545,3.2078,3155.7,3155.6,0.31701]
[1736822996433,3.52477,3156.1,3155.7,0.317]
[1736822997041,3.2078,3156.1,3155.7,0.317]
[1736822997242,0.31698,3156.0,3155.7,0.317]
[1736823000351,3.2078,3156.1,3155.9,0.31698]
[1736823000545,3.52477,3156.1,3155.8,0.31699]
[1736823000746,0.31697,3156.0,3155.8,0.31699]
[1736823003661,0.31697,3156.0,3155.5,4.778562]
[1736823003965,0.31697,3156.0,3155.7,0.31699]
[1736823004161,0.31697,3156.0,3155.8,0.31699]
[1736823004862,0.4703,3156.0,3155.2,0.31705]
[1736823005058,0.31703,3155.4,3155.3,0.9265]
[1736823005257,3.2078,3155.6,3154.6,11.417]
[1736823005458,3.2078,3155.2,3154.7,2.2497]
[1736823005659,3.2078,3155.2,3154.7,1.293]
[1736823005660,0.31709,3154.8,3154.7,1.293]
[1736823006672,0.31709,3154.8,3154.6,0.4566]
[1736823006673,0.3171,3154.7,3154.6,0.4566]
[1736823007468,3.2078,3154.8,3154.5,1.293]
[1736823007469,0.31711,3154.6,3154.5,1.293]
[1736823008664,0.4723,3154.7,3154.5,1.293]
[1736823008967,2.531062,3154.6,3154.0,0.4841]
[1736823009162,0.31715,3154.3,3154.0,0.4841]
[1736823009665,3.2078,3154.4,3154.0,0.4841]
[1736823009856,0.31715,3154.2,3154.0,0.4841]
[1736823010260,0.31716,3154.1,3153.9,1.294]
[1736823010460,3.52494,3154.4,3154.0,0.31717]
[1736823011259,0.31714,3154.3,3153.9,1.61118]
[1736823011460,3.52493,3154.4,3154.0,0.31717]
[1736823012363,3.2078,3154.4,3153.9,1.294]
[1736823012966,3.52494,3154.4,3154.0,0.31717]
[1736823013271,0.31715,3154.3,3153.9,1.61117]
[1736823013461,3.2078,3154.4,3154.1,0.31715]
[1736823013861,3.2078,3154.4,3153.9,1.294]
[1736823014070,3.2078,3154.4,3154.2,0.31715]
[1736823014765,3.2078,3154.4,3154.1,0.31716]
[1736823016564,3.2078,3154.4,3154.2,0.31715]
[1736823016866,3.2078,3154.4,3154.1,0.31715]
[1736823017069,3.2078,3154.4,3153.9,1.294]
[1736823017378,3.2078,3154.4,3154.2,0.31715]
[1736823017866,3.52493,3154.4,3154.1,0.31716]
[1736823018164,3.52493,3154.4,3154.2,0.31714]
[1736823018165,3.2078,3154.4,3154.2,0.31714]
[1736823019065,3.2078,3154.4,3153.9,1.294]
[1736823019269,3.2078,3154.4,3154.1,0.31716]
[1736823019466,3.2078,3154.4,3154.2,1.294]
[1736823020671,3.2078,3154.4,3154.2,1.61114]
[1736823021170,3.2078,3154.4,3154.2,1.294]
[1736823021467,3.2078,3154.4,3154.2,1.61115]
[1736823023567,3.2078,3154.4,3154.3,0.31714]
[1736823023771,3.2078,3154.4,3154.2,1.61114]
[1736823024973,3.2078,3154.4,3154.2,1.294]
[1736823025474,3.2078,3154.4,3154.2,1.61114]
[1736823026367,3.2078,3154.4,3154.3,0.31714]
[1736823026570,3.2078,3154.4,3154.3,0.79704]
[1736823026764,3.2078,3154.4,3154.3,1.28734]
[1736823028265,3.2078,3154.4,3154.2,1.294]
[1736823028465,0.31714,3154.3,3154.2,1.294]
[1736823028668,0.80774,3154.3,3154.2,1.294]
[1736823029368,0.9785,3154.3,3154.2,1.294]
[1736823029764,3.2078,3154.4,3154.3,0.31714]
[1736823031862,0.29705601,3155.1,3154.8,0.31709]
[1736823031863,3.2078,3154.9,3154.8,0.31709]
[1736823032070,3.6775,3155.3,3154.8,0.31709]
[1736823032266,0.31706,3155.1,3154.8,0.31709]
[1736823032468,3.2078,3154.9,3154.4,0.9912]
[1736823032669,3.2078,3154.5,3154.4,0.4983]
[1736823033666,3.2078,3154.5,3154.4,0.81543]
[1736823035172,3.2078,3154.5,3154.4,0.4983]
[1736823037175,3.2078,3154.9,3154.4,0.4983]